bitfinex/quotes_BTCUSD_20251113
["timestamp","ask_amount","ask_price","bid_price","bid_amount"]
[1763050341092,2.81729009,101270.0,101260.0,0.00150148]
[1763050341312,2.3403174,101270.0,101260.0,0.00150148]
[1763050341749,0.2657174,101270.0,101260.0,0.00050148]
[1763050341961,0.3323174,101270.0,101260.0,0.00050148]
[1763050342185,0.05145,101270.0,101260.0,0.19801283]
[1763050342399,0.026,101270.0,101260.0,0.31213283]
[1763050342598,0.24594185,101270.0,101260.0,0.24266283]
[1763050343262,0.04845,101270.0,101260.0,0.24266283]
[1763050343476,0.04545,101270.0,101260.0,0.24266283]
[1763050343681,0.02,101270.0,101260.0,0.24266283]
[1763050343891,0.021,101270.0,101260.0,0.31213283]
[1763050344535,0.02,101270.0,101260.0,0.31213283]
[1763050345168,0.21749185,101270.0,101260.0,0.04615148]
[1763050345381,0.37250921,101270.0,101260.0,0.00150148]
[1763050346038,0.35076185,101270.0,101260.0,0.00150148]
[1763050346420,0.11116879,101270.0,101260.0,0.00150148]
[1763050346620,0.32866064,101270.0,101260.0,0.00150148]
[1763050346846,0.26671064,101270.0,101260.0,0.00150148]
[1763050347238,0.32713064,101270.0,101260.0,0.00150148]
[1763050348024,0.06921879,101270.0,101260.0,0.19901283]
[1763050348236,0.22084064,101270.0,101260.0,0.19901283]
[1763050348427,0.02334879,101270.0,101260.0,0.19901283]
[1763050348655,0.02334879,101270.0,101260.0,0.31313283]
[1763050349303,0.0506382,101270.0,101260.0,0.31313283]
[1763050349513,0.24813005,101270.0,101260.0,0.00150148]
[1763050349715,0.24813005,101270.0,101260.0,0.19901283]
[1763050349888,0.04728941,101270.0,101260.0,0.31339283]
[1763050350345,0.25171126,101270.0,101260.0,0.24366283]
[1763050350734,0.25171126,101270.0,101260.0,0.04615148]
[1763050351387,0.93765597,101270.0,101260.0,0.00150148]
[1763050351609,0.84195237,101270.0,101260.0,0.00150148]
[1763050352910,2.84195237,101270.0,101260.0,0.00150148]
[1763050353124,3.16495237,101270.0,101260.0,0.00150148]
[1763050354044,3.16495237,101270.0,101260.0,0.00050148]
[1763050354266,3.26443573,101270.0,101260.0,0.00050148]
[1763050354717,3.16595237,101270.0,101260.0,0.00050148]
[1763050357772,2.65810126,101270.0,101260.0,0.00050148]
[1763050357988,3.16595237,101270.0,101260.0,0.00050148]
[1763050358430,0.21755037,101240.0,101220.0,0.00489655]
[1763050358653,0.03724,101230.0,101220.0,0.00489655]
[1763050358870,0.2842293,101230.0,101220.0,0.20248595]
[1763050359301,0.04728941,101230.0,101220.0,0.31953595]
[1763050359732,0.04728941,101230.0,101220.0,0.32153595]
[1763050359978,0.2448593,101230.0,101220.0,0.32153595]
[1763050360184,0.2448593,101230.0,101220.0,0.25180595]
[1763050360397,0.2448593,101230.0,101220.0,0.20448595]
[1763050360817,0.2448593,101230.0,101220.0,0.20248595]
[1763050361036,0.2448593,101230.0,101220.0,0.25180595]
[1763050361266,0.04728941,101230.0,101220.0,0.32153595]
[1763050361475,0.02728941,101230.0,101220.0,0.32153595]
[1763050361691,0.00921774,101230.0,101220.0,0.32153595]
[1763050361902,0.22677093,101240.0,101230.0,0.19756989]
[1763050362129,0.04729286,101240.0,101230.0,0.34991989]
[1763050362343,0.02729286,101240.0,101230.0,0.34991989]
[1763050363227,0.02729286,101240.0,101230.0,0.35191989]
[1763050363457,0.02719198,101240.0,101230.0,0.35191989]
[1763050364161,0.28909235,101240.0,101230.0,0.00375251]
[1763050364407,0.3533288,101240.0,101230.0,0.00375251]
[1763050364663,0.83498346,101240.0,101230.0,0.00375251]
[1763050365351,0.32713235,101240.0,101230.0,0.00375251]
[1763050365571,2.83498346,101240.0,101230.0,0.00375251]
[1763050366236,2.83498346,101240.0,101230.0,0.00175251]
[1763050366476,2.93346682,101240.0,101230.0,0.00175251]
[1763050366693,2.93446682,101240.0,101230.0,0.00175251]
[1763050367126,2.93446682,101240.0,101230.0,0.00075251]
[1763050367406,2.32813235,101240.0,101230.0,0.00075251]
[1763050367629,2.83598346,101240.0,101230.0,0.00075251]
[1763050372047,2.82686439,101240.0,101230.0,0.00075251]
[1763050372271,2.82686439,101240.0,101220.0,0.00489655]
[1763050372272,0.19785206,101230.0,101220.0,0.00489655]
[1763050372486,3.22536523,101230.0,101220.0,0.00489655]
[1763050372704,3.35353684,101230.0,101220.0,0.00489655]
[1763050373615,3.22536523,101230.0,101220.0,0.00489655]
[1763050375102,3.22636523,101230.0,101220.0,0.00489655]
[1763050375541,3.23558462,101230.0,101220.0,0.00489655]
[1763050375752,2.81441547,101230.0,101220.0,0.00489655]
[1763050377995,2.81441547,101230.0,101220.0,0.00514745]
[1763050378261,3.23589883,101230.0,101220.0,0.00514745]
[1763050378478,3.33406798,101230.0,101220.0,0.00514745]
[1763050379382,3.37748672,101230.0,101220.0,1e-08]
[1763050380202,2.86963561,101230.0,101220.0,1e-08]
[1763050380422,3.38748671,101230.0,101220.0,1e-08]
[1763050380666,3.38848671,101230.0,101210.0,1e-08]
[1763050380889,3.19343925,101220.0,101210.0,1e-08]
[1763050381111,3.19343925,101220.0,101190.0,1e-08]
[1763050381112,0.24330845,101200.0,101190.0,1e-08]
[1763050381336,3.73066171,101200.0,101190.0,1e-08]
[1763050381785,3.73066171,101200.0,101180.0,1e-08]
[1763050381786,0.24475672,101190.0,101180.0,1e-08]
[1763050382006,2.37415902,101190.0,101180.0,1e-08]
[1763050382221,3.07002807,101190.0,101180.0,1e-08]
[1763050383162,3.14452547,101190.0,101180.0,1e-08]
[1763050383638,2.63667436,101190.0,101180.0,1e-08]
[1763050383871,3.02760933,101190.0,101180.0,1e-08]
[1763050384094,3.02860933,101190.0,101180.0,1e-08]
[1763050384319,3.03861795,101190.0,101180.0,1e-08]
[1763050385216,3.08203669,101190.0,101180.0,1e-08]
[1763050386053,2.57418558,101190.0,101180.0,1e-08]
[1763050386316,3.08203669,101190.0,101180.0,1e-08]
[1763050387234,3.1568231,101190.0,101180.0,1e-08]
[1763050387431,3.1568231,101190.0,101180.0,0.00025105]
[1763050388279,3.03861795,101190.0,101180.0,0.00025105]
[1763050388470,2.53076684,101190.0,101180.0,0.00025105]
[1763050388717,3.03861795,101190.0,101180.0,0.00025105]
[1763050389392,3.08203669,101190.0,101180.0,0.00025105]
[1763050389813,2.53076684,101190.0,101180.0,0.00025105]
[1763050390028,3.03861795,101190.0,101180.0,0.00025105]
[1763050390892,3.04710756,101190.0,101180.0,0.00025105]
[1763050391328,2.40329943,101190.0,101180.0,0.00025105]
[1763050391542,0.29513028,101190.0,101180.0,0.00025105]
[1763050391751,2.80298139,101190.0,101180.0,0.00025105]
[1763050392216,3.12598139,101190.0,101180.0,0.00025105]
[1763050392427,3.23420158,101190.0,101180.0,0.00025105]
[1763050392654,3.33268494,101190.0,101180.0,0.00025105]
[1763050392877,3.35838494,101190.0,101180.0,0.00025105]
[1763050394638,2.52066752,101180.0,101170.0,0.0004]
[1763050394862,3.11009093,101180.0,101170.0,0.0004]
[1763050396191,2.62767982,101180.0,101170.0,0.0004]
[1763050396402,2.27897982,101180.0,101170.0,0.19808706]
[1763050397050,2.27897982,101180.0,101170.0,0.0004]
[1763050397889,2.91070008,101180.0,101170.0,0.0004]
[1763050398099,2.81253093,101180.0,101170.0,0.0004]
[1763050398317,2.30467982,101180.0,101170.0,0.0004]
[1763050398579,2.37746318,101180.0,101170.0,0.0004]
[1763050398786,2.24495982,101180.0,101170.0,0.03573]
[1763050399215,2.0472923,101180.0,101170.0,0.23341706]
[1763050399423,2.24495982,101180.0,101170.0,0.23341706]
[1763050399632,2.34344318,101180.0,101170.0,0.23341706]
[1763050399887,2.34344318,101180.0,101170.0,0.03573]
[1763050400084,2.34344318,101180.0,101170.0,0.23341706]
[1763050400085,0.34344318,101180.0,101170.0,0.23341706]
[1763050400296,0.34344318,101180.0,101170.0,0.03598109]
[1763050400512,0.40316318,101180.0,101170.0,0.00065109]
[1763050400729,2.91101429,101180.0,101170.0,0.00065109]
[1763050400946,0.19768706,101170.0,101160.0,8e-05]
[1763050401132,2.36716303,101170.0,101160.0,8e-05]
[1763050401392,2.87501414,101170.0,101160.0,8e-05]
[1763050401828,3.19801414,101170.0,101160.0,8e-05]
[1763050402256,2.27925936,101170.0,101160.0,0.00108]
[1763050402696,2.27925936,101170.0,101160.0,8e-05]
[1763050402913,2.28225936,101170.0,101160.0,0.00108]
[1763050403126,2.24797936,101170.0,101160.0,0.1987866]
[1763050403349,2.24497936,101170.0,101160.0,0.1977866]
[1763050403600,2.28043377,101170.0,101160.0,0.1977866]
[1763050403818,2.83832488,101170.0,101160.0,8e-05]
[1763050404035,2.31645377,101170.0,101160.0,8e-05]
[1763050404249,2.10949855,101170.0,101160.0,8e-05]
[1763050404469,2.28716147,101170.0,101160.0,0.00108]
[1763050404696,2.25370706,101170.0,101160.0,0.00108]
[1763050404916,2.79557817,101170.0,101160.0,0.00108]
[1763050405124,2.79357817,101170.0,101160.0,0.00108]
[1763050405336,2.79357817,101170.0,101160.0,0.00208]
[1763050405549,2.38421042,101170.0,101160.0,0.00108]
[1763050405770,2.35019042,101170.0,101160.0,0.00108]
[1763050406000,2.25270706,101170.0,101160.0,0.00108]
[1763050406209,2.25270706,101170.0,101160.0,8e-05]
[1763050406429,2.25270706,101170.0,101160.0,0.1977866]
[1763050406619,2.25370706,101170.0,101160.0,0.19803772]
[1763050406826,2.25370706,101170.0,101160.0,0.00033112]
[1763050407447,2.35219042,101170.0,101160.0,0.19803772]
[1763050408236,2.35219042,101170.0,101160.0,0.31347772]
[1763050408237,0.022,101170.0,101160.0,0.31347772]
[1763050409251,0.02,101170.0,101160.0,0.31347772]
[1763050409457,0.25400706,101170.0,101160.0,0.00033112]
[1763050409638,0.74185817,101170.0,101160.0,0.00033112]
[1763050409839,0.25400706,101170.0,101160.0,0.00033112]
[1763050410291,2.89666153,101170.0,101160.0,0.00033112]
[1763050411037,2.40969006,101170.0,101160.0,0.00033112]
[1763050411217,3.04949728,101170.0,101160.0,0.00033112]
[1763050412353,3.37249728,101170.0,101160.0,0.00033112]
[1763050412533,3.39851902,101170.0,101160.0,0.00033112]
[1763050412732,3.37249728,101170.0,101160.0,0.00033112]
[1763050413580,3.37449728,101170.0,101160.0,0.00033112]
[1763050414013,3.37649728,101170.0,101160.0,0.00033112]
[1763050414206,3.37449728,101170.0,101160.0,0.00033112]
[1763050414630,2.2405667,101170.0,101160.0,0.00033112]
[1763050414872,0.2405667,101170.0,101160.0,0.00033112]
[1763050415069,2.2768867,101170.0,101160.0,0.00033112]
[1763050415471,2.3132067,101170.0,101160.0,0.00033112]
[1763050415679,2.3112067,101170.0,101160.0,0.00033112]
[1763050415883,2.40969006,101170.0,101160.0,0.00033112]
[1763050416089,3.04949728,101170.0,101160.0,0.00033112]
[1763050417564,3.05149728,101170.0,101160.0,0.00033112]
[1763050417770,3.37449728,101170.0,101160.0,0.00033112]
[1763050417947,2.2177066,101160.0,101150.0,0.1004]
[1763050418152,2.24894072,101160.0,101150.0,0.1004]
[1763050418357,2.28071072,101160.0,101150.0,0.1004]
[1763050418877,2.94678493,101160.0,101150.0,0.1004]
[1763050419082,2.28071072,101160.0,101150.0,0.1004]
[1763050419285,2.31703072,101160.0,101150.0,0.1004]
[1763050419502,2.95683794,101160.0,101150.0,0.1004]
[1763050420448,2.24439072,101160.0,101150.0,0.18008]
[1763050420653,0.24439072,101160.0,101150.0,0.44398614]
[1763050420852,0.04668412,101160.0,101150.0,0.44398614]
[1763050421649,0.24439072,101160.0,101150.0,0.44398614]
[1763050421854,0.04668412,101160.0,101150.0,0.44398614]
[1763050422051,0.24439072,101160.0,101150.0,0.44398614]
[1763050422254,0.24439072,101160.0,101150.0,0.37780614]
[1763050422474,0.04668412,101160.0,101150.0,0.44398614]
[1763050423091,0.24439072,101160.0,101150.0,0.44398614]
[1763050423294,0.02854657,101160.0,101150.0,0.44398614]
[1763050423788,0.02854657,101160.0,101150.0,0.4442373]
[1763050423995,0.20625317,101160.0,101150.0,0.4442373]
[1763050424411,0.00854657,101160.0,101150.0,0.4442373]
[1763050425234,0.00854657,101160.0,101150.0,0.4452373]
[1763050425457,0.00854657,101160.0,101150.0,0.4462373]
[1763050425643,0.00854657,101160.0,101150.0,0.7692373]
[1763050425797,0.00854657,101160.0,101150.0,1.45246326]
[1763050426006,0.25170037,101190.0,101180.0,0.19766752]
[1763050426205,0.27832345,101190.0,101180.0,0.23239752]
[1763050426632,0.31464345,101190.0,101180.0,0.03473]
[1763050426830,0.21766752,101180.0,101170.0,0.19768706]
[1763050427037,0.22615566,101180.0,101170.0,0.19768706]
[1763050427247,0.00848814,101180.0,101170.0,0.34354706]
[1763050428246,0.19761279,101210.0,101190.0,0.1976303]
[1763050428415,0.19761279,101210.0,101180.0,0.20751653]
[1763050428416,2.90488852,101210.0,101200.0,0.03473]
[1763050428611,0.21762845,101200.0,101190.0,0.23237751]
[1763050428889,0.02848057,101200.0,101190.0,0.23237751]
[1763050429104,0.02848057,101200.0,101190.0,0.34350751]
[1763050429338,0.22610902,101200.0,101190.0,0.34350751]
[1763050429538,0.02848057,101200.0,101190.0,0.34350751]
[1763050429955,0.00848057,101200.0,101190.0,0.34350751]
[1763050430201,2.021,101210.0,101200.0,0.19762845]
[1763050430410,2.04658737,101210.0,101200.0,0.24257845]
[1763050430627,2.14507073,101210.0,101200.0,0.24257845]
[1763050431029,2.34267966,101210.0,101200.0,0.24257845]
[1763050431247,2.04658737,101210.0,101200.0,0.24257845]
[1763050431471,0.02947293,101210.0,101200.0,0.24257845]
[1763050431681,0.02947293,101210.0,101200.0,0.30875845]
[1763050432290,0.00947293,101210.0,101200.0,0.30875845]
[1763050432507,0.20808186,101210.0,101200.0,0.04495]
[1763050432712,0.22808186,101210.0,101200.0,0.24257845]
[1763050433134,0.01047293,101210.0,101200.0,0.94856567]
[1763050433357,0.01047293,101210.0,101200.0,0.35217719]
[1763050433572,0.002,101210.0,101200.0,0.35217719]
[1763050434043,0.001,101210.0,101200.0,1.09015356]
[1763050434259,0.23410023,101230.0,101220.0,0.1975894]
[1763050434468,0.1975894,101220.0,101210.0,0.29850138]
[1763050434678,0.02846025,101220.0,101210.0,0.29850138]
[1763050434883,0.22604965,101220.0,101210.0,0.14586]
[1763050435117,0.02,101210.0,101200.0,0.20062655]
[1763050435331,0.21760893,101210.0,101200.0,0.20062845]
[1763050435554,0.22606688,101210.0,101200.0,0.003]
[1763050435770,0.21762845,101200.0,101190.0,0.23237045]
[1763050435987,0.26362998,101200.0,101190.0,0.03473]
[1763050436195,0.21762845,101200.0,101190.0,0.03473]
[1763050436846,0.21762845,101200.0,101190.0,0.23237798]
[1763050437053,0.19764798,101190.0,101180.0,0.27369653]
[1763050437255,0.21764798,101190.0,101180.0,0.27369653]
[1763050437454,0.21764798,101190.0,101180.0,0.31864653]
[1763050437997,0.02,101190.0,101180.0,0.30879752]
[1763050438177,0.21764798,101190.0,101180.0,0.30979752]
[1763050438380,0.23131798,101190.0,101180.0,0.24361752]
[1763050438637,0.27421262,101190.0,101180.0,0.19866752]
[1763050438981,0.23131798,101190.0,101180.0,0.19866752]
[1763050439185,0.23131798,101190.0,101180.0,0.04795]
[1763050439608,0.21764798,101190.0,101180.0,0.11413]
[1763050439805,0.21764798,101190.0,101180.0,0.31179752]
[1763050440613,0.21764798,101190.0,101180.0,0.003]
[1763050440614,0.26151798,101190.0,101180.0,0.003]
[1763050440809,0.23131798,101190.0,101180.0,0.003]
[1763050441020,0.32980134,101190.0,101180.0,0.003]
[1763050441218,0.36000134,101190.0,101180.0,0.003]
[1763050441816,3.03000856,101190.0,101180.0,0.003]
[1763050442250,3.03000856,101190.0,101180.0,0.001]
[1763050442678,3.03000856,101190.0,101180.0,0.002]
[1763050443326,3.03846671,101190.0,101180.0,0.002]
[1763050443533,3.03846671,101190.0,101180.0,0.001]
[1763050443958,3.36246671,101190.0,101180.0,0.001]
[1763050444193,0.1977066,101170.0,101160.0,0.1977066]
[1763050444400,0.21768706,101170.0,101160.0,0.2403166]
[1763050444988,0.21768706,101170.0,101160.0,0.04261]
[1763050445216,0.1977066,101160.0,101150.0,0.20322116]
[1763050445427,0.1977066,101160.0,101150.0,0.4009473]
[1763050445657,0.26021439,101170.0,101160.0,0.1977066]
[1763050445866,0.06252733,101170.0,101160.0,0.1987066]
[1763050446072,0.02,101170.0,101160.0,0.3108866]
[1763050446952,0.21768706,101170.0,101160.0,0.3108866]
[1763050447158,0.21768706,101170.0,101160.0,0.2438266]
[1763050447360,0.02,101170.0,101160.0,0.3108866]
[1763050447783,0.21768706,101170.0,101160.0,0.3108866]
[1763050448020,0.21768706,101170.0,101160.0,0.2448266]
[1763050448249,0.19768706,101170.0,101160.0,0.04712]
[1763050448463,0.26021439,101170.0,101160.0,0.2007066]
[1763050448673,0.24612706,101170.0,101160.0,0.003]
[1763050448892,0.27456706,101170.0,101160.0,0.003]
[1763050449086,0.24612706,101170.0,101160.0,0.003]
[1763050449663,0.24612706,101170.0,101160.0,0.2007066]
[1763050449890,0.27830778,101170.0,101160.0,0.2007066]
[1763050450352,0.21768706,101170.0,101160.0,0.2007066]
[1763050450814,0.02,101170.0,101160.0,0.3138866]
[1763050451038,0.21768706,101170.0,101160.0,0.3138866]
[1763050451496,2.02,101180.0,101170.0,0.19767694]
[1763050451726,2.02,101180.0,101170.0,0.34515694]
[1763050451727,0.02,101180.0,101170.0,0.34515694]
[1763050451956,0.03367,101190.0,101180.0,0.19766752]
[1763050452186,0.03367,101190.0,101180.0,0.31084752]
[1763050452419,0.02,101190.0,101180.0,0.31084752]
[1763050452656,0.20260964,101210.0,101190.0,0.29899]
[1763050452907,2.0,101200.0,101190.0,0.29899]
[1763050453169,2.19762845,101200.0,101190.0,0.29899]
[1763050453419,0.19762845,101200.0,101190.0,0.27805]
[1763050453867,0.21762845,101200.0,101190.0,0.34511]
[1763050454793,2.21760893,101210.0,101200.0,0.19762845]
[1763050455015,2.19760893,101210.0,101190.0,0.34511]
[1763050455245,0.021,101200.0,101190.0,0.34511]
[1763050455471,0.022,101200.0,101190.0,0.34511]
[1763050455966,0.02,101200.0,101190.0,0.34511]
[1763050456890,0.024,101210.0,101200.0,0.19762845]
[1763050457111,0.024,101210.0,101200.0,0.31080845]
[1763050457339,0.02,101210.0,101200.0,0.31080845]
[1763050458006,0.02,101220.0,101210.0,0.19759004]
[1763050458256,0.02,101230.0,101220.0,0.1975894]
[1763050458484,2.02842927,101230.0,101220.0,0.2780094]
[1763050458711,0.24252916,101230.0,101220.0,0.14748]
[1763050458939,0.04495927,101230.0,101220.0,0.2780094]
[1763050459167,0.13419185,101230.0,101220.0,0.2780094]
[1763050459887,0.01809594,101240.0,101230.0,0.34504989]
[1763050460126,0.21564631,101240.0,101230.0,0.08042]
[1763050460596,0.03809594,101240.0,101230.0,0.34504989]
[1763050460846,0.23564631,101240.0,101230.0,0.27798989]
[1763050461258,0.23764631,101240.0,101230.0,0.27798989]
[1763050461686,0.23964631,101240.0,101230.0,0.27798989]
[1763050461888,0.02209594,101240.0,101230.0,0.34504989]
[1763050462175,0.23964631,101240.0,101230.0,0.34504989]
[1763050462597,0.23964631,101240.0,101230.0,0.27798989]
[1763050463257,0.02208712,101240.0,101230.0,0.34504989]
[1763050463483,0.04208712,101240.0,101230.0,0.34504989]
[1763050463701,0.23963749,101240.0,101230.0,0.34504989]
[1763050463909,0.04208712,101240.0,101230.0,0.34504989]
[1763050464128,0.23963749,101240.0,101230.0,0.34504989]
[1763050464359,0.04208712,101240.0,101230.0,0.34504989]
[1763050464576,0.02208712,101240.0,101230.0,0.34504989]
[1763050464769,0.02206172,101240.0,101230.0,0.34504989]
[1763050465447,0.004,101240.0,101230.0,0.34504989]
[1763050466290,0.002,101240.0,101230.0,0.34504989]
[1763050466498,0.22020479,101250.0,101230.0,0.34504989]
[1763050466698,0.2382646,101250.0,101240.0,0.11318]
[1763050467069,0.19755037,101240.0,101230.0,0.29892989]
[1763050467282,0.02,101240.0,101230.0,0.29892989]
[1763050467476,0.02,101240.0,101230.0,0.34504989]
[1763050467882,0.20420451,101250.0,101230.0,0.34504989]
[1763050468108,0.24025771,101250.0,101240.0,0.11318]
[1763050468313,0.23825771,101250.0,101240.0,0.04612]
[1763050468970,0.19755037,101240.0,101230.0,0.29892989]
[1763050469185,0.21755037,101240.0,101230.0,0.29892989]
[1763050469330,0.21755037,101240.0,101230.0,0.34504989]
[1763050469537,0.02,101240.0,101230.0,0.34504989]
[1763050469833,0.001,101240.0,101230.0,0.34504989]
[1763050470594,0.002,101240.0,101230.0,0.34504989]
[1763050471782,0.01040775,101240.0,101230.0,0.34504989]
[1763050471991,0.01040775,101240.0,101230.0,0.1773908]
[1763050471992,0.002,101240.0,101230.0,0.1773908]
[1763050472178,0.01040777,101240.0,101230.0,0.14748]
[1763050472382,0.20795814,101240.0,101230.0,0.14748]
[1763050472594,0.19756989,101230.0,101220.0,0.10181]
[1763050472805,0.21755037,101240.0,101220.0,0.14528]
[1763050473004,0.04644953,101240.0,101230.0,0.14318]
[1763050473255,0.03040763,101240.0,101230.0,0.14318]
[1763050473461,0.226958,101240.0,101230.0,0.07567]
[1763050473655,0.225958,101240.0,101230.0,0.14318]
[1763050473858,2.21755037,101240.0,101230.0,0.07567]
[1763050474000,0.02,101240.0,101230.0,0.14318]
[1763050474182,0.00267341,101250.0,101230.0,0.14318]
[1763050474383,0.20020427,101250.0,101240.0,0.04347]
[1763050474590,0.22825298,101250.0,101240.0,0.11098]
[1763050475066,0.22825298,101250.0,101240.0,0.04347]
[1763050475806,0.03072212,101250.0,101240.0,0.30853037]
[1763050476155,0.22825298,101250.0,101240.0,0.11098]
[1763050476379,0.23025298,101250.0,101240.0,0.11098]
[1763050476581,0.22925298,101250.0,101240.0,0.11098]
[1763050476709,0.23025298,101250.0,101240.0,0.11098]
[1763050476906,0.04272212,101250.0,101240.0,0.11098]
[1763050477121,0.02272212,101250.0,101240.0,0.11098]
[1763050478157,0.22025298,101250.0,101240.0,0.11098]
[1763050478361,0.24025298,101250.0,101240.0,0.11098]
[1763050478565,0.04272212,101250.0,101240.0,0.11098]
[1763050478756,0.00467341,101250.0,101240.0,0.61912581]
[1763050478961,0.00467341,101250.0,101240.0,0.11098]
[1763050479855,0.00467341,101250.0,101240.0,0.7607137]
[1763050480042,0.00467341,101250.0,101240.0,0.66254455]
[1763050480600,0.00267341,101250.0,101240.0,0.66254455]
[1763050481056,0.00267341,101250.0,101240.0,0.66354455]
[1763050482750,0.00267341,101250.0,101240.0,0.98654455]
[1763050483437,0.00267341,101250.0,101240.0,1.01671975]
[1763050483576,0.00267341,101250.0,101240.0,1.01571975]
[1763050483775,0.00267341,101250.0,101240.0,1.53383221]
[1763050483947,0.00267341,101250.0,101240.0,1.51569034]
[1763050484143,0.00267341,101250.0,101240.0,1.51669034]
[1763050484616,0.00267341,101250.0,101240.0,1.54653904]
[1763050484828,0.00118341,101250.0,101240.0,1.54653904]
[1763050485060,0.00118341,101250.0,101240.0,1.51669034]
[1763050485624,0.00118341,101250.0,101240.0,1.54424229]
[1763050486058,0.00118341,101250.0,101240.0,1.51669034]
[1763050486274,0.00118341,101250.0,101240.0,1.51469034]
[1763050486463,0.00118341,101250.0,101240.0,1.51369034]
[1763050486670,0.00118341,101250.0,101240.0,0.50039872]
[1763050486873,0.00118341,101250.0,101240.0,1.61685949]
[1763050488792,0.00118341,101250.0,101240.0,1.76255949]
[1763050489999,0.00118341,101250.0,101240.0,1.6068595]
[1763050490346,0.00118341,101250.0,101240.0,1.09871369]
[1763050490537,0.00118341,101250.0,101240.0,1.0887137]
[1763050491350,0.00118341,101250.0,101240.0,1.59685951]
[1763050491576,0.00118341,101250.0,101240.0,1.0887137]
[1763050491781,0.00118341,101250.0,101240.0,0.7657137]
[1763050491990,0.00118341,101250.0,101240.0,0.21414915]
[1763050492197,0.00118341,101250.0,101240.0,0.72229496]
[1763050492452,0.00118341,101250.0,101240.0,0.11598]
[1763050492643,0.00118341,101250.0,101240.0,0.21414915]
[1763050492864,0.00118341,101250.0,101240.0,1.0887137]
[1763050493117,0.02,101270.0,101240.0,1.0887137]
[1763050493368,0.71567248,101290.0,101280.0,0.19747235]
[1763050493369,0.0002,101290.0,101280.0,0.19747235]
[1763050493571,2.0002,101290.0,101280.0,0.7925069]
[1763050493825,0.00696759,101290.0,101280.0,0.8600169]
[1763050494038,0.0002,101290.0,101280.0,0.8600169]
[1763050495119,0.0002,101290.0,101280.0,0.89023552]
[1763050495325,0.0002,101290.0,101280.0,1.39838133]
[1763050495747,0.0012,101290.0,101280.0,1.73138132]
[1763050495945,0.0012,101290.0,101280.0,1.7011627]
[1763050496364,0.0002,101290.0,101280.0,1.7011627]
[1763050496579,0.0002,101290.0,101280.0,1.1830169]
[1763050497980,0.0002,101290.0,101280.0,0.67487109]
[1763050498197,0.0002,101290.0,101280.0,1.1830169]
[1763050498834,0.0002,101290.0,101280.0,1.1930169]
[1763050499041,0.00120272,101290.0,101280.0,1.1930169]
[1763050499217,0.00120272,101290.0,101280.0,0.99554455]
[1763050499449,0.22540763,101290.0,101280.0,0.12098]
[1763050499576,0.00795478,101290.0,101280.0,0.12098]
[1763050499783,0.02795478,101290.0,101280.0,0.12098]
[1763050500391,0.25811716,101290.0,101280.0,0.01]
[1763050500601,0.22540763,101290.0,101280.0,0.11344]
[1763050501312,0.00795478,101290.0,101280.0,0.11344]
[1763050501517,0.02795478,101290.0,101280.0,0.11344]
[1763050501894,0.02895478,101290.0,101280.0,0.11344]
[1763050502079,0.22540763,101290.0,101280.0,0.11344]
[1763050502508,0.02995478,101290.0,101280.0,0.11344]
[1763050502728,0.22840763,101290.0,101280.0,0.11344]
[1763050502885,0.03095478,101290.0,101280.0,0.11344]
[1763050503521,0.0002,101300.0,101280.0,0.62158581]
[1763050503731,0.0002,101300.0,101290.0,1.00927455]
[1763050503732,0.01825903,101300.0,101290.0,1.00927455]
[1763050504048,0.0002,101310.0,101300.0,0.04341874]
[1763050504258,0.01806832,101310.0,101300.0,0.65500455]
[1763050504437,0.0002,101320.0,101300.0,0.65500455]
[1763050504675,0.0002,101320.0,101310.0,1.00927455]
[1763050504890,0.01827554,101320.0,101310.0,1.03949317]
[1763050505121,0.01827554,101320.0,101310.0,1.00927455]
[1763050505480,0.01827554,101320.0,101310.0,1.20668842]
[1763050505945,0.21566993,101320.0,101310.0,0.68627455]
[1763050506156,0.23566993,101320.0,101300.0,0.19743152]
[1763050506416,0.03827554,101320.0,101310.0,0.33526387]
[1763050506619,0.01827554,101320.0,101310.0,0.33526387]
[1763050507187,0.01827554,101320.0,101310.0,0.84340968]
[1763050507431,0.01827554,101320.0,101310.0,0.88782842]
[1763050507672,0.01827554,101320.0,101310.0,0.37968261]
[1763050507853,0.01827554,101320.0,101310.0,0.37868261]
[1763050508930,0.01827554,101320.0,101310.0,0.88682842]
[1763050509447,0.0012,101320.0,101310.0,0.88682842]
[1763050509882,0.00195166,101320.0,101310.0,0.88682842]
[1763050510762,0.00195166,101320.0,101310.0,0.37868261]
[1763050511161,0.19934605,101320.0,101310.0,0.33526387]
[1763050511587,0.00195166,101320.0,101310.0,1.30799757]
[1763050511806,0.0102,101360.0,101350.0,0.19733596]
[1763050512017,0.20751649,101360.0,101350.0,0.26997596]
[1763050512220,0.02829677,101360.0,101350.0,0.33518596]
[1763050512461,0.20751649,101360.0,101350.0,0.07264]
[1763050512674,0.02,101350.0,101340.0,0.22830543]
[1763050512914,0.21733596,101350.0,101340.0,0.09616]
[1763050513125,0.21733596,101350.0,101330.0,0.03095]
[1763050513126,0.19735543,101340.0,101330.0,0.03095]
[1763050513327,0.20735543,101340.0,101330.0,0.03095]
[1763050513721,0.20735543,101340.0,101330.0,0.27001491]
[1763050513867,0.20735543,101340.0,101330.0,0.33522491]
[1763050514075,0.20735543,101340.0,101330.0,0.07264]
[1763050514430,0.02,101320.0,101310.0,0.23823456]
[1763050514639,0.21739439,101320.0,101310.0,0.03095]
[1763050515063,0.02,101320.0,101310.0,0.27005387]
[1763050515308,0.21739439,101320.0,101310.0,0.27005387]
[1763050515705,0.02,101320.0,101310.0,0.33526387]
[1763050515909,0.02,101320.0,101310.0,0.27005387]
[1763050516112,0.21739439,101320.0,101310.0,0.03095]
[1763050516323,0.19741387,101310.0,101300.0,0.03095]
[1763050516538,0.19741387,101310.0,101290.0,0.04114264]
[1763050516539,0.19743336,101300.0,101290.0,0.04114264]
[1763050516711,0.02,101300.0,101290.0,0.34549549]
[1763050517311,0.22465387,101310.0,101300.0,0.19743336]
[1763050517519,0.02,101310.0,101300.0,0.81247917]
[1763050517743,0.20724365,101330.0,101310.0,0.19739902]
[1763050517934,0.02,101320.0,101310.0,0.23524902]
[1763050518104,0.21739439,101320.0,101310.0,0.23524902]
[1763050518306,0.02,101320.0,101310.0,0.23524902]
[1763050518496,0.20724365,101330.0,101320.0,0.19739439]
[1763050518497,2.02,101330.0,101320.0,0.19739439]
[1763050518699,0.0260874,101330.0,101320.0,0.30429439]
[1763050518910,0.22191275,101350.0,101330.0,0.19737491]
[1763050519135,0.22191275,101350.0,101330.0,0.22832491]
[1763050519136,0.21735543,101340.0,101330.0,0.22832491]
[1763050519335,0.02608746,101340.0,101330.0,0.22832491]